fUSD/lending_fUSD_20240117
["ID","MTS","AMOUNT","RATE_DAILY","PERIOD"]
[311885732,1705488654177,-500.0,0.00022191,2]
[311885733,1705488654186,-3630.56,0.00022191,5]
[311885734,1705488654195,-1009.29,0.00022191,2]
[311885735,1705488654205,-860.2,0.00022191,2]
[311885736,1705488654214,-500.0,0.00022191,2]
[311885737,1705488654224,-500.0,0.00022191,2]
[311885738,1705488654233,-3000.32,0.00022191,2]
[311885739,1705488654242,-500.0,0.00022191,2]
[311885740,1705488654251,-1976.53,0.00022191,2]
[311885741,1705488654261,-707.64,0.00022191,2]
[311885742,1705488654270,-1434.99,0.00022191,2]
[311885743,1705488654279,-853.73,0.00022191,2]
[311885744,1705488654287,-500.0,0.00022191,2]
[311885745,1705488654296,-1329.6,0.00022191,2]
[311885746,1705488654305,-336.22,0.00022191,2]
[311885747,1705488654314,-528.77,0.00022191,2]
[311885748,1705488654323,-500.0,0.00022191,2]
[311885749,1705488654331,-500.0,0.00022191,2]
[311885750,1705488654340,-667.94,0.00022191,2]
[311885751,1705488654349,-2576.0,0.00022191,2]
[311885752,1705488654358,-875.5,0.00022191,2]
[311885753,1705488654367,-705.1,0.00022191,2]
[311885754,1705488654376,-2366.12,0.00022191,2]
[311885755,1705488654385,-812.09,0.00022191,2]
[311885756,1705488654394,-879.47,0.00022191,2]
[311885757,1705488654402,-246.32240116,0.00022191,2]
[311885758,1705488654411,-500.0,0.00022191,2]
[311885759,1705488654419,-715.03,0.00022191,2]
[311885760,1705488654428,-11459.96,0.00022191,2]
[311885761,1705488654437,-500.0,0.00022191,2]
[311885762,1705488654446,-515.6,0.00022191,2]
[311885763,1705488654454,-641.32,0.00022191,2]
[311885764,1705488654463,-1048.58,0.00022191,2]
[311885765,1705488654472,-510.56749756,0.00022191,2]
[311885766,1705488654481,-500.0,0.00022191,2]
[311885767,1705488654491,-5111.98,0.00022191,2]
[311885768,1705488654500,-552.35,0.00022191,2]
[311885769,1705488654510,-500.0,0.00022191,2]
[311885770,1705488654519,-647.76,0.00022191,2]
[311885771,1705488654528,-532.14,0.00022191,2]
[311885772,1705488654537,-500.0,0.00022191,2]
[311885773,1705488654546,-2490.86,0.00022191,2]
[311885774,1705488654555,-705.81,0.00022191,2]
[311885775,1705488654564,-14359.82,0.00022191,2]
[311885776,1705488654573,-2917.75,0.00022191,2]
[311885777,1705488654582,-1872.63,0.00022191,2]
[311885778,1705488654591,-500.0,0.00022191,2]
[311885779,1705488654600,-807.83,0.00022191,2]
[311885780,1705488654610,-1503.37,0.00022191,2]
[311885781,1705488654619,-589.12,0.00022191,2]
[311885782,1705488654628,-500.0,0.00022191,2]
[311885783,1705488654636,-500.0,0.00022191,2]
[311885784,1705488654645,-2138.02,0.00022191,2]
[311885785,1705488654654,-500.0,0.00022191,2]
[311885786,1705488654663,-500.0,0.00022191,2]
[311885787,1705488654672,-500.0,0.00022191,2]
[311885788,1705488654681,-554.76,0.00022191,2]
[311885789,1705488654690,-2218.44,0.00022191,2]
[311885790,1705488654699,-500.0,0.00022191,2]
[311885791,1705488654708,-877.95,0.00022191,2]
[311885792,1705488654718,-3473.34,0.00022191,2]
[311885793,1705488654729,-868.74,0.00022191,2]
[311885794,1705488654738,-685.76,0.00022191,2]
[311885795,1705488654746,-500.0,0.00022191,2]
[311885796,1705488654755,-876.45,0.00022191,2]
[311885797,1705488654763,-4596.33,0.00022191,2]
[311885798,1705488654772,-500.0,0.00022191,2]
[311885799,1705488654781,-500.0,0.00022191,2]
[311885800,1705488654789,-500.0,0.00022191,2]
[311885801,1705488654799,-14177.31,0.00022191,2]
[311885802,1705488654807,-4599.49,0.00022191,2]
[311885803,1705488654816,-2576.23482935,0.00022191,2]
[311885804,1705488655494,-2951.78,0.00021917,2]
[311885805,1705488655503,-500.0,0.00021917,2]
[311885806,1705488655513,-1393.51517065,0.00022191,2]
[311885807,1705488655521,-832.29,0.00022191,2]
[311885808,1705488655530,-644.4,0.00022191,2]
[311885809,1705488655539,-500.0,0.00022191,2]
[311885810,1705488655548,-880.72,0.00022191,2]
[311885811,1705488655556,-1391.2,0.00022191,2]
[311885812,1705488655565,-500.0,0.00022191,2]
[311885813,1705488655574,-500.0,0.00022191,2]
[311885814,1705488655583,-663.88,0.00022191,2]
[311885815,1705488655593,-594.75,0.00022191,2]
[311885816,1705488655602,-9705.57,0.00022191,2]
[311885817,1705488655611,-703.46,0.00022191,2]
[311885818,1705488655619,-704.13,0.00022191,2]
[311885819,1705488655628,-605.03,0.00022191,2]
[311885820,1705488655637,-32373.7099724,0.00022191,2]
[311885821,1705488655711,-500.0,0.00021917,2]
[311885822,1705488655722,-1665.62024534,0.00022191,2]
[311885823,1705488656182,-150.0,0.00021659,2]
[311885824,1705488656192,-160.3786,0.00021816,2]
[311885825,1705488656201,-500.0,0.00021917,2]
[311885826,1705488656211,-576.00978226,0.00022191,2]
[311885827,1705488656221,-1695.19161774,0.00022191,2]
[311885828,1705488656232,-380.30838226,0.00022191,2]
[311885829,1705488656242,-506.08,0.00022191,2]
[311885830,1705488656252,-500.0,0.00022191,2]
[311885831,1705488656261,-2045.47,0.00022191,2]
[311885832,1705488656270,-777.479393,0.00022191,2]
[311885833,1705488656282,-262.510607,0.00022191,2]
[311885834,1705488656292,-256.26930376,0.00022191,2]
[311885835,1705488656304,-243.73069624,0.00022191,2]
[311885836,1705488656313,-392.67306926,0.00022191,2]
[311885837,1705488656618,-500.0,0.00021917,2]
[311885838,1705488656628,-293.04001747,0.00021917,2]
[311885839,1705488656638,-166.20962493,0.00022091,2]
[311885840,1705488656649,-107.32693074,0.00022191,2]
[311885841,1705488656658,-500.0,0.00022191,2]
[311885842,1705488656668,-2710.52,0.00022191,2]
[311885843,1705488656678,-500.0,0.00022191,2]
[311885844,1705488656687,-2635.81,0.00022191,2]
[311885845,1705488656697,-943.05,0.00022191,2]
[311885846,1705488656707,-1689.36,0.00022191,2]
[311885847,1705488656717,-739.2,0.00022191,2]
[311885848,1705488656726,-2054.68,0.00022191,2]
[311885849,1705488656737,-500.0,0.00022191,2]
[311885850,1705488656746,-1099.64,0.00022191,2]
[311885851,1705488656756,-500.0,0.00022191,2]
[311885852,1705488656766,-869.67,0.00022191,2]
[311885853,1705488656775,-2357.57,0.00022191,2]
[311885854,1705488656785,-926.28,0.00022191,2]
[311885855,1705488656795,-1000.0,0.00022191,2]
[311885856,1705488656805,-713.68,0.00022191,2]
[311885857,1705488656814,-720.39,0.00022191,2]
[311885858,1705488656824,-873.55,0.00022191,2]
[311885859,1705488656833,-8393.93,0.00022191,2]
[311885860,1705488656843,-500.0,0.00022191,2]
[311885861,1705488656852,-1390.52,0.00022191,2]
[311885862,1705488656862,-517.76,0.00022191,2]
[311885863,1705488656872,-910.32,0.00022191,2]
[311885864,1705488656881,-500.0,0.00022191,2]
[311885865,1705488656891,-500.0,0.00022191,2]
[311885866,1705488656901,-6332.89,0.00022191,2]
[311885867,1705488656911,-500.0,0.00022191,2]
[311885868,1705488656921,-500.0,0.00022191,2]
[311885869,1705488656931,-586.33,0.00022191,2]
[311885870,1705488656940,-1671.96,0.00022191,2]
[311885871,1705488656950,-500.0,0.00022191,2]
[311885872,1705488656964,-551.23,0.00022191,2]
[311885873,1705488656973,-9600.75,0.00022191,2]
[311885874,1705488656983,-500.0,0.00022191,2]
[311885875,1705488656993,-1754.58,0.00022191,2]
[311885876,1705488657004,-577.93,0.00022191,2]
[311885877,1705488657013,-3201.92,0.00022191,2]
[311885878,1705488657023,-1540.65,0.00022191,2]
[311885879,1705488657034,-4395.59,0.00022191,2]
[311885880,1705488657044,-614.63,0.00022191,2]
[311885881,1705488657054,-500.0,0.00022191,2]
[311885882,1705488657063,-525.25,0.00022191,2]
[311885883,1705488657073,-3830.63,0.00022191,2]
[311885884,1705488657083,-500.0,0.00022191,2]
[311885885,1705488657093,-520.89,0.00022191,2]
[311885886,1705488657103,-500.0,0.00022191,2]
[311885887,1705488657118,-1946.71,0.00022191,2]
[311885888,1705488657128,-2125.29,0.00022191,2]
[311885889,1705488657138,-500.0,0.00022191,2]
[311885890,1705488657148,-500.0,0.00022191,2]
[311885891,1705488657158,-500.0,0.00022191,2]
[311885892,1705488657168,-1811.53,0.00022191,2]
[311885893,1705488657178,-651.41,0.00022191,2]
[311885894,1705488657188,-2104.46,0.00022191,2]
[311885895,1705488657197,-1352.84,0.00022191,2]
[311885896,1705488657207,-500.0,0.00022191,2]
[311885897,1705488657217,-500.0,0.00022191,2]
[311885898,1705488657227,-500.0,0.00022191,2]
[311885899,1705488657236,-1952.99,0.00022191,2]
[311885900,1705488657246,-500.0,0.00022191,2]
[311885901,1705488657257,-1847.02,0.00022191,2]
[311885902,1705488657266,-15253.77,0.00022191,2]
[311885903,1705488657275,-500.0,0.00022191,2]
[311885904,1705488657285,-500.0,0.00022191,2]
[311885905,1705488657295,-513.87,0.00022191,2]
[311885906,1705488657309,-1333.29,0.00022191,2]
[311885907,1705488657319,-500.0,0.00022191,2]
[311885908,1705488657329,-4946.71,0.00022191,2]
[311885909,1705488657339,-741.64,0.00022191,2]
[311885910,1705488657349,-1150.76,0.00022191,2]
[311885911,1705488657359,-500.0,0.00022191,2]
[311885912,1705488657369,-827.73,0.00022191,2]
[311885913,1705488657379,-623.53,0.00022191,2]
[311885914,1705488657389,-500.0,0.00022191,2]
[311885915,1705488657399,-1890.29,0.00022191,2]
[311885916,1705488657408,-500.0,0.00022191,2]
[311885917,1705488657418,-5453.76,0.00022191,2]
[311885918,1705488657428,-1964.2,0.00022191,2]
[311885919,1705488657438,-1403.16,0.00022191,2]
[311885920,1705488657447,-2002.08,0.00022191,2]
[311885921,1705488657457,-650.76,0.00022191,2]
[311885922,1705488657468,-852.34,0.00022191,2]
[311885923,1705488657478,-500.0,0.00022191,2]
[311885924,1705488657489,-1935.37,0.00022191,2]
[311885925,1705488657499,-500.0,0.00022191,2]
[311885926,1705488657508,-500.0,0.00022191,2]
[311885927,1705488657519,-500.0,0.00022191,2]
[311885928,1705488657530,-500.0,0.00022191,2]
[311885929,1705488657540,-500.0,0.00022191,2]
[311885930,1705488657550,-700.95,0.00022191,2]
[311885931,1705488657560,-1647.36,0.00022191,2]
[311885932,1705488657570,-831.0,0.00022191,2]
[311885933,1705488657580,-4859.08,0.00022191,2]
[311885934,1705488657590,-941.29,0.00022191,2]
[311885935,1705488657601,-1051.12,0.00022191,2]
[311885936,1705488657610,-1257.32,0.00022191,2]
[311885937,1705488657620,-2029.02,0.00022191,2]
[311885938,1705488657630,-704.24,0.00022191,2]
[311885939,1705488657640,-555.38,0.00022191,2]
[311885940,1705488657650,-500.0,0.00022191,2]
[311885941,1705488657660,-1071.83,0.00022191,2]
[311885942,1705488657670,-3042.81,0.00022191,2]
[311885943,1705488657679,-823.84,0.00022191,2]
[311885944,1705488657689,-500.0,0.00022191,2]
[311885945,1705488657699,-770.24,0.00022191,2]
[311885946,1705488657709,-1738.03,0.00022191,2]
[311885947,1705488657719,-500.0,0.00022191,2]
[311885948,1705488657729,-500.0,0.00022191,2]
[311885949,1705488657740,-1291.67,0.00022191,2]
[311885950,1705488657750,-1761.41,0.00022191,2]
[311885951,1705488657760,-500.0,0.00022191,2]
[311885952,1705488657770,-821.85,0.00022191,2]
[311885953,1705488657780,-607.37,0.00022191,2]
[311885954,1705488657790,-866.94,0.00022191,2]
[311885955,1705488658125,-500.0,0.00022191,2]
[311885956,1705488658157,-4694.22,0.00022191,2]
[311885957,1705488658167,-2506.4,0.00022191,2]
[311885958,1705488658177,-1131.24,0.00022191,2]
[311885959,1705488658187,-500.0,0.00022191,2]
[311885960,1705488658197,-500.0,0.00022191,2]
[311885961,1705488658206,-500.0,0.00022191,2]
[311885962,1705488658216,-500.0,0.00022191,2]
[311885963,1705488658226,-3959.94,0.00022191,2]
[311885964,1705488658235,-259.2894188,0.00022191,2]
[311885965,1705488658245,-2094.15,0.00022191,2]
[311885966,1705488658255,-4319.86,0.00022191,2]
[311885967,1705488658264,-500.0,0.00022191,2]
[311885968,1705488658274,-2271.37,0.00022191,2]
[311885969,1705488658283,-500.0,0.00022191,2]
[311885970,1705488658293,-500.0,0.00022191,2]
[311885971,1705488658303,-933.77,0.00022191,2]
[311885972,1705488658312,-1481.08,0.00022191,2]
[311885973,1705488658322,-7648.53,0.00022191,2]
[311885974,1705488658332,-1082.69,0.00022191,2]
[311885975,1705488658342,-500.0,0.00022191,2]
[311885976,1705488658351,-500.0,0.00022191,2]
[311885977,1705488658361,-1475.99,0.00022191,2]
[311885978,1705488658371,-300.0,0.00022191,2]
[311885979,1705488658380,-2575.21,0.00022191,2]
[311885980,1705488658390,-237.81921478,0.00022191,2]
[311885981,1705488658399,-30053.43,0.00022191,2]
[311885982,1705488658409,-500.0,0.00022191,2]
[311885983,1705488658419,-3632.01,0.00022191,2]
[311885984,1705488658428,-3264.64,0.00022191,2]
[311885985,1705488658438,-500.0,0.00022191,2]
[311885986,1705488658448,-500.0,0.00022191,2]
[311885987,1705488658457,-2030.7,0.00022191,2]
[311885988,1705488658468,-710.47,0.00022191,2]
[311885989,1705488658480,-500.0,0.00022191,2]
[311885990,1705488658489,-500.0,0.00022191,2]
[311885991,1705488658498,-1035.23,0.00022191,2]
[311885992,1705488658507,-500.0,0.00022191,2]
[311885993,1705488658517,-714.35,0.00022191,2]
[311885994,1705488658526,-1128.71,0.00022191,2]
[311885995,1705488658536,-978.56,0.00022191,2]
[311885996,1705488658545,-1177.35,0.00022191,2]
[311885997,1705488658555,-545.73067076,0.00022191,2]
[311885998,1705488658565,-2634.18,0.00022191,2]
[311885999,1705488658574,-3800.16,0.00022191,5]
[311886000,1705488658584,-523.94,0.00022191,2]
[311886001,1705488658593,-500.0,0.00022191,2]
[311886002,1705488658603,-500.0,0.00022191,2]
[311886003,1705488658612,-2512.79,0.00022191,2]
[311886004,1705488658622,-500.0,0.00022191,2]
[311886005,1705488658631,-500.0,0.00022191,2]
[311886006,1705488658640,-2279.78,0.00022191,2]
[311886007,1705488658650,-500.0,0.00022191,2]
[311886008,1705488658659,-804.36,0.00022191,2]
[311886009,1705488658668,-1004.4,0.00022191,2]
[311886010,1705488658678,-1923.54,0.00022191,2]
[311886011,1705488658688,-3802.64896482,0.00022191,2]
[311886012,1705488658704,-467.45103518,0.00022191,2]
[311886013,1705488658714,-518.17,0.00022191,2]
[311886014,1705488658725,-500.0,0.00022191,2]
[311886015,1705488658734,-500.0,0.00022191,2]
[311886016,1705488658743,-500.0,0.00022191,2]
[311886017,1705488658753,-1937.63,0.00022191,2]
[311886018,1705488658763,-1071.73134424,0.00022191,2]
[311886019,1705488658800,-589.6473757,0.00022191,2]
[311886020,1705488658814,-623.83128006,0.00022191,2]
[311886021,1705488658824,-500.0,0.00022191,2]
[311886022,1705488658834,-1022.86184857,0.00022191,2]
[311886023,1705488658861,-813.9352847,0.00022191,2]
[311886024,1705488659263,-51.71286673,0.00022191,2]
[311886025,1705488659273,-1603.9,0.00022191,2]
[311886026,1705488659283,-500.0,0.00022191,2]
[311886027,1705488659292,-500.0,0.00022191,2]
[311886028,1705488659301,-500.0,0.00022191,2]
[311886029,1705488659311,-1767.86,0.00022191,2]
[311886030,1705488659321,-1566.49,0.00022191,2]
[311886031,1705488659330,-593.48,0.00022191,2]
[311886032,1705488659340,-500.0,0.00022191,2]
[311886033,1705488659350,-500.0,0.00022191,2]
[311886034,1705488659360,-635.03,0.00022191,2]
[311886035,1705488659370,-1593.88,0.00022191,2]
[311886036,1705488659380,-2962.92,0.00022191,2]
[311886037,1705488659390,-500.0,0.00022191,2]
[311886038,1705488659400,-500.0,0.00022191,2]
[311886039,1705488659409,-500.0,0.00022191,2]
[311886040,1705488659419,-500.0,0.00022191,2]
[311886041,1705488659429,-3111.33,0.00022191,2]
[311886042,1705488659438,-2055.85,0.00022191,2]
[311886043,1705488659448,-726.57,0.00022191,2]
[311886044,1705488659457,-566.97,0.00022191,2]
[311886045,1705488659470,-500.0,0.00022191,2]
[311886046,1705488659480,-1947.16,0.00022191,2]
[311886047,1705488659489,-4287.85274321,0.00022191,2]
[311886048,1705488659501,-803.92841362,0.00022191,2]
[311886049,1705488659617,-413.31884317,0.00022191,2]
[311886050,1705488659627,-624.17,0.00022191,2]
[311886051,1705488659637,-1070.54389307,0.00022191,2]
[311886052,1705488659754,-299.54610693,0.00022191,2]
[311886053,1705488659778,-1853.52,0.00022191,2]
[311886054,1705488659789,-432.69172014,0.00022191,2]
[311886055,1705488659802,-67.30827986,0.00022191,2]
[311886056,1705488659812,-500.0,0.00022191,2]
[311886057,1705488659822,-1637.1,0.00022191,2]
[311886058,1705488659832,-58.97474964,0.00022191,2]
[311886059,1705488660882,-2605.02614452,0.00021916,2]
[311886060,1705488660892,-1993.03525036,0.00022191,2]
[311886061,1705488660902,-782.35,0.00022191,2]
[311886062,1705488660911,-500.0,0.00022191,2]
[311886063,1705488660921,-4410.08,0.00022191,2]
[311886064,1705488660931,-500.0,0.00022191,2]
[311886065,1705488660941,-8725.03,0.00022191,2]
[311886066,1705488660954,-5.26692805,0.00022191,2]
[311886067,1705488660980,-494.73307195,0.00022191,2]
[311886068,1705488660990,-1981.96,0.00022191,2]
[311886069,1705488660999,-500.0,0.00022191,2]
[311886070,1705488661008,-500.0,0.00022191,2]
[311886071,1705488661018,-1215.13,0.00022191,2]
[311886072,1705488661027,-2115.15,0.00022191,2]
[311886073,1705488661037,-2824.61,0.00022191,2]
[311886074,1705488661046,-500.0,0.00022191,2]
[311886075,1705488661055,-2085.9,0.00022191,2]
[311886076,1705488661065,-500.0,0.00022191,2]
[311886077,1705488661074,-500.0,0.00022191,2]
[311886078,1705488661083,-2812.02,0.00022191,2]
[311886079,1705488661093,-500.0,0.00022191,2]
[311886080,1705488661102,-3655.16,0.00022191,2]
[311886081,1705488661111,-500.0,0.00022191,2]
[311886082,1705488661121,-500.0,0.00022191,2]
[311886083,1705488661131,-1068.5,0.00022191,2]
[311886084,1705488661140,-695.59,0.00022191,2]
[311886085,1705488661149,-540.4,0.00022191,2]
[311886086,1705488661158,-500.0,0.00022191,2]
[311886087,1705488661168,-623.15,0.00022191,2]
[311886088,1705488661177,-2599.42,0.00022191,2]
[311886089,1705488661187,-1194.74,0.00022191,2]
[311886090,1705488661196,-1422.77,0.00022191,2]
[311886091,1705488661205,-3187.15,0.00022191,2]
[311886092,1705488661214,-2619.41,0.00022191,2]
[311886093,1705488661227,-428.99655289,0.00022191,2]
[311886094,1705488661237,-500.0,0.00022191,2]
[311886095,1705488661246,-635.23,0.00022191,2]
[311886096,1705488661255,-500.0,0.00022191,2]
[311886097,1705488661263,-500.0,0.00022191,2]
[311886098,1705488661272,-1574.29,0.00022191,2]
[311886099,1705488661281,-571.81,0.00022191,2]
[311886100,1705488661291,-1700.52,0.00022191,2]
[311886101,1705488661300,-500.0,0.00022191,2]
[311886102,1705488661310,-1079.73,0.00022191,2]
[311886103,1705488661318,-901.83,0.00022191,2]
[311886104,1705488661328,-1569.06,0.00022191,2]
[311886105,1705488661337,-506.98,0.00022191,2]
[311886106,1705488661346,-3173.12,0.00022191,2]
[311886107,1705488661356,-537.59,0.00022191,2]
[311886108,1705488661365,-500.0,0.00022191,2]
[311886109,1705488661375,-500.0,0.00022191,2]
[311886110,1705488661384,-212.17243104,0.00022191,2]
[311886111,1705488661393,-500.0,0.00022191,2]
[311886112,1705488661402,-500.0,0.00022191,2]
[311886113,1705488661411,-1317.13,0.00022191,2]
[311886114,1705488661421,-500.0,0.00022191,2]
[311886115,1705488661430,-500.0,0.00022191,2]
[311886116,1705488661439,-1071.34,0.00022191,2]
[311886117,1705488661448,-1408.0,0.00022191,2]
[311886118,1705488661458,-2581.89,0.00022191,2]
[311886119,1705488661467,-9485.3,0.00022191,2]
[311886120,1705488661478,-503.12058871,0.00022191,2]
[311886121,1705488661487,-1270.58,0.00022191,2]
[311886122,1705488661496,-860.48,0.00022191,2]
[311886123,1705488661506,-500.0,0.00022191,2]
[311886124,1705488661515,-889.73,0.00022191,2]
[311886125,1705488661525,-2433.65,0.00022191,2]
[311886126,1705488661534,-8774.2,0.00022191,2]
[311886127,1705488661543,-646.1,0.00022191,2]
[311886128,1705488661553,-13.69675629,0.00022191,2]
[311886129,1705488661569,-446.712,0.00022191,2]
[311886130,1705488661580,-244.78124371,0.00022191,2]
[311886131,1705488661589,-419.84267828,0.00022191,2]
[311886132,1705488661601,-909.06732172,0.00022191,2]
[311886133,1705488661610,-427.3673217,0.00022191,2]
[311886134,1705488661621,-2400.7726783,0.00022191,2]
[311886135,1705488661630,-818.39,0.00022191,2]
[311886136,1705488661639,-1298.31,0.00022191,2]
[311886137,1705488661649,-2259.7,0.00022191,2]
[311886138,1705488661659,-857.82732125,0.00022191,2]
[311886139,1705488684832,909.40117,0.00027,7]
[311886140,1705488710271,161666.58667805,0.0002,2]
[311886141,1705488710303,22222.0,0.0002,2]
[311886142,1705488710332,150.0,0.0002,2]
[311886154,1705489223697,153.11,0.00020442,10]
[311886157,1705489276638,150.0,0.00018517,2]
[311886160,1705489307318,150.0,0.00016289,2]
[311886161,1705489307353,27.01,0.00016289,2]
[311886166,1705489353993,205.0,0.00026765,8]
[311886170,1705489417055,151.0,0.00029883,120]
[311886173,1705489714246,205.0,0.00025876,8]
[311886174,1705489737620,151.0,0.00029872,120]
[311886175,1705489745108,-343.02606752,0.00018106,2]
[311886176,1705489745129,-558.73559187,0.00018107,2]
[311886177,1705489745150,-523.73846155,0.00018108,2]
[311886178,1705489745170,-542.84106609,0.00018108,2]
[311886179,1705489745192,-164.56856321,0.00018418,2]
[311886180,1705489749929,387.72,0.00018171,2]
[311886181,1705489757616,165.17419233,0.00018007,2]
[311886182,1705489830161,151.40117,0.00027,7]
[311886183,1705489831980,151.40117,0.00027,7]
[311886211,1705489832228,-697.79476583,0.00018006,2]
[311886212,1705489832239,-159.95448596,0.00018007,2]
[311886213,1705489832248,-168.07,0.00020001,2]
[311886214,1705489832257,-253.96345704,0.00020001,2]
[311886215,1705489832315,-658.34702874,0.00020001,2]
[311886216,1705489832329,-279.48951422,0.00020001,2]
[311886217,1705489832341,-150.0,0.00020091,2]
[311886218,1705489832351,-171.55,0.00020152,2]
[311886219,1705489832361,-163.62,0.00020167,2]
[311886220,1705489832370,-200.0,0.00020179,2]
[311886221,1705489832380,-150.0,0.00020181,2]
[311886222,1705489832390,-3153.64712577,0.00020182,2]
[311886223,1705489832423,-748.31736778,0.00020182,2]
[311886224,1705489832439,-426.36,0.00020182,2]
[311886225,1705489832451,-765.15,0.00020182,2]
[311886226,1705489832463,-440.50048215,0.00020182,2]
[311886227,1705489832475,-18366.0250243,0.00020182,2]
[311886228,1705489832484,-6672.74,0.00020182,2]
[311886229,1705489832493,-500.0,0.00020195,2]
[311886230,1705489832502,-2318.28,0.00020198,2]
[311886231,1705489832511,-236.89,0.00020219,2]
[311886232,1705489832520,-164.56856321,0.00020255,2]
[311886233,1705489832529,-440.39,0.00020269,2]
[311886234,1705489832539,-818.36,0.00020277,2]
[311886235,1705489832548,-157.16,0.00020279,2]
[311886237,1705489832557,-1000.0,0.00020399,2]
[311886239,1705489832566,-157.16,0.0002043,2]
[311886242,1705489832576,-387.72,0.00020435,2]
[311886244,1705489832585,-167.14,0.00020442,2]
[311886246,1705489832595,-250.0,0.000205,2]
[311886248,1705489832604,-2000.0,0.00020548,2]
[311886249,1705489832613,-499.99,0.00020554,2]
[311886251,1705489832622,-157.16,0.00020581,2]
[311886253,1705489832631,-159.64,0.00020603,2]
[311886255,1705489832640,-157.16,0.00020732,2]
[311886257,1705489832649,-157.38,0.0002088,2]
[311886259,1705489832658,-157.16,0.00020883,2]
[311886261,1705489832667,-150.99,0.000209,2]
[311886263,1705489832677,-163.49,0.00020987,2]
[311886265,1705489832686,-959.98822282,0.00021,4]
[311886267,1705489832696,-157.16,0.00021034,2]
[311886269,1705489832705,-157.16,0.00021185,2]
[311886271,1705489832714,-350.6,0.0002119,2]
[311886272,1705489832733,-174.39414918,0.0002119,3]
[311886273,1705489832746,-151.90251997,0.00021191,2]
[311886274,1705489832756,-440.39,0.00021248,2]
[311886275,1705489832766,-157.16,0.00021336,2]
[311886276,1705489832775,-157.38,0.00021402,2]
[311886277,1705489832785,-205.0,0.00021611,2]
[311886278,1705489832795,-2869.8311,0.000217,2]
[311886280,1705489832804,-3302.6703,0.000217,2]
[311886282,1705489832814,-721.44,0.00021711,2]
[311886284,1705489832824,-12792.37539306,0.000218,2]
[311886286,1705489832885,-12505.77550274,0.000218,2]
[311886287,1705489832972,151.40117,0.00027,7]
[311886288,1705489833147,151.40117,0.00027,7]
[311886289,1705489833949,151.40117,0.00027,7]
[311886290,1705489835239,151.40117,0.00027,7]
[311886291,1705489835731,151.40117,0.00027,7]
[311886292,1705489836169,151.40117,0.00027,7]
[311886293,1705489836623,151.40117,0.00027,7]
[311886294,1705489837024,151.40117,0.00027,7]
[311886295,1705489837398,151.40117,0.00027,7]
[311886296,1705489837788,151.40117,0.00027,7]
[311886298,1705489838291,151.40117,0.00027,7]
[311886299,1705489838327,-501.7,0.000218,2]
[311886300,1705489838345,-7740.57927754,0.000218,2]
[311886301,1705489838357,-13670.21353304,0.000218,2]
[311886302,1705489838367,-180.9212962,0.00021804,2]
[311886303,1705489838377,-724.3,0.0002181,2]
[311886304,1705489838386,-250.0,0.00021817,2]
[311886305,1705489838396,-1336.8872,0.00021817,2]